fUSD/lending_fUSD_20250618
["ID","MTS","AMOUNT","RATE_DAILY","PERIOD"]
[366362465,1750212649570,-490.0,0.00016438,2]
[366362466,1750212649580,-490.0,0.00016438,2]
[366362467,1750212649590,-2429.64,0.00016438,2]
[366362468,1750212649599,-1892.41,0.00016438,2]
[366362469,1750212649609,-934.8,0.00016438,2]
[366362470,1750212649619,-490.0,0.00016438,2]
[366362471,1750212649628,-490.0,0.00016438,2]
[366362472,1750212649638,-490.0,0.00016438,2]
[366362473,1750212649647,-490.0,0.00016438,2]
[366362474,1750212649656,-490.0,0.00016438,2]
[366362475,1750212649666,-490.0,0.00016438,2]
[366362476,1750212649675,-490.65783381,0.00016438,2]
[366362477,1750212649685,-492.29154274,0.00016438,2]
[366362478,1750212649694,-513.41,0.00016438,2]
[366362479,1750212649704,-496.16356313,0.00016438,2]
[366362480,1750212649713,-1769.34,0.00016438,2]
[366362481,1750212649723,-490.0,0.00016438,2]
[366362482,1750212649732,-499.34883765,0.00016438,2]
[366362483,1750212649742,-1503.99,0.00016438,2]
[366362484,1750212649751,-490.0,0.00016438,2]
[366362485,1750212649761,-750.17,0.00016438,2]
[366362486,1750212649919,-714.38,0.00016438,2]
[366362487,1750212649952,-490.0,0.00016438,2]
[366362488,1750212649962,-490.0,0.00016438,2]
[366362489,1750212649972,-302.7569895,0.00016438,2]
[366362490,1750212649983,-673.41,0.00016438,2]
[366362491,1750212649992,-490.0,0.00016438,2]
[366362492,1750212650002,-490.0,0.00016438,2]
[366362493,1750212650012,-2369.32,0.00016438,2]
[366362494,1750212650021,-588.25,0.00016438,2]
[366362495,1750212650032,-489.61373419,0.00016438,2]
[366362496,1750212650041,-509.51,0.00016438,2]
[366362497,1750212650052,-822.13,0.00016438,2]
[366362498,1750212650062,-601.08,0.00016438,2]
[366362499,1750212650072,-1420.99,0.00016438,2]
[366362500,1750212650082,-490.0,0.00016438,2]
[366362501,1750212650092,-495.85432007,0.00016438,2]
[366362502,1750212650104,-490.0,0.00016438,2]
[366362503,1750212650114,-2755.61,0.00016438,2]
[366362504,1750212650124,-1878.8,0.00016438,2]
[366362505,1750212650134,-655.95,0.00016438,2]
[366362506,1750212650144,-493.05564871,0.00016438,2]
[366362507,1750212650154,-2074.05,0.00016438,2]
[366362508,1750212650164,-490.0,0.00016438,2]
[366362509,1750212650174,-517.56,0.00016438,2]
[366362510,1750212650184,-490.94310673,0.00016438,2]
[366362511,1750212650195,-735.81,0.00016438,2]
[366362512,1750212650205,-260.32133755,0.00016438,2]
[366362513,1750212650216,-490.0,0.00016438,2]
[366362514,1750212650226,-493.81900911,0.00016438,2]
[366362515,1750212650236,-153.30948597,0.00016438,2]
[366362516,1750212650246,-557.62,0.00016438,2]
[366362517,1750212650256,-490.0,0.00016438,2]
[366362518,1750212650267,-154.234646,0.00016438,2]
[366362519,1750212650278,-1585.59,0.00016438,2]
[366362520,1750212650288,-1744.75,0.00016438,2]
[366362521,1750212650297,-490.0,0.00016438,2]
[366362522,1750212650308,-496.95706583,0.00016438,2]
[366362523,1750212650318,-489.66268777,0.00016438,2]
[366362524,1750212650328,-878.27,0.00016438,2]
[366362525,1750212650338,-490.0,0.00016438,2]
[366362526,1750212650349,-490.89244852,0.00016438,2]
[366362527,1750212650360,-394.02627274,0.00016438,2]
[366362528,1750212650370,-490.0,0.00016438,2]
[366362529,1750212650380,-714.75,0.00016438,2]
[366362530,1750212650392,-490.0,0.00016438,2]
[366362531,1750212650402,-490.0,0.00016438,2]
[366362532,1750212650412,-486.25447013,0.00016438,2]
[366362533,1750212650422,-490.0,0.00016438,2]
[366362534,1750212650432,-488.13735015,0.00016438,2]
[366362535,1750212650442,-490.0,0.00016438,2]
[366362536,1750212650452,-1261.15,0.00016438,2]
[366362537,1750212650462,-490.0,0.00016438,2]
[366362538,1750212650472,-490.0,0.00016438,2]
[366362539,1750212650482,-492.24710336,0.00016438,2]
[366362540,1750212650492,-590.08,0.00016438,2]
[366362541,1750212650502,-494.17506584,0.00016438,2]
[366362542,1750212650512,-490.0,0.00016438,2]
[366362543,1750212650522,-490.0,0.00016438,2]
[366362544,1750212650532,-2764.37,0.00016438,2]
[366362545,1750212650542,-723.31,0.00016438,2]
[366362546,1750212650552,-490.0,0.00016438,2]
[366362547,1750212650562,-593.88,0.00016438,2]
[366362548,1750212650572,-496.51747768,0.00016438,2]
[366362549,1750212650582,-269.3605631,0.00016438,2]
[366362550,1750212650593,-511.97,0.00016438,2]
[366362551,1750212650602,-151.0,0.00016438,2]
[366362552,1750212650612,-1186.74,0.00016438,2]
[366362553,1750212650621,-151.0,0.00016438,2]
[366362554,1750212650631,-151.0,0.00016438,2]
[366362555,1750212650641,-151.0,0.00016438,2]
[366362556,1750212650651,-151.0,0.00016438,2]
[366362557,1750212650661,-151.0,0.00016438,2]
[366362558,1750212650671,-857.17736714,0.00016438,2]
[366362559,1750212650741,-1348.89263286,0.00016438,2]
[366362560,1750212650751,-156.84083,0.00016438,2]
[366362561,1750212650761,-1546.55,0.00016438,2]
[366362562,1750212650775,-1981.85,0.00016438,2]
[366362563,1750212650786,-827.68,0.00016438,2]
[366362564,1750212650795,-1620.75,0.00016438,2]
[366362565,1750212650807,-819.53,0.00016438,2]
[366362566,1750212650817,-498.1226728,0.00016438,2]
[366362567,1750212650826,-490.0,0.00016438,2]
[366362568,1750212650837,-1020.78386434,0.00016438,2]
[366362569,1750212650870,-403.56613566,0.00016438,2]
[366362570,1750212650880,-348.97252063,0.00016438,2]
[366362571,1750212650906,-402.65747937,0.00016438,2]
[366362572,1750212650916,-490.0,0.00016438,2]
[366362573,1750212650927,-1000.0,0.00016438,2]
[366362574,1750212650937,-1307.32,0.00016438,2]
[366362575,1750212650948,-490.0,0.00016438,2]
[366362576,1750212650958,-490.0015096,0.00016438,2]
[366362577,1750212650968,-490.0,0.00016438,2]
[366362578,1750212650979,-490.0,0.00016438,2]
[366362579,1750212650989,-490.0,0.00016438,2]
[366362580,1750212650998,-490.0,0.00016438,2]
[366362581,1750212651008,-225.079845,0.00016438,2]
[366362582,1750212651018,-490.0,0.00016438,2]
[366362583,1750212651027,-225.079845,0.00016438,2]
[366362584,1750212651037,-225.079845,0.00016438,2]
[366362585,1750212651047,-225.079845,0.00016438,2]
[366362586,1750212651057,-225.079845,0.00016438,2]
[366362587,1750212651067,-225.079845,0.00016438,2]
[366362588,1750212651077,-1105.04,0.00016438,2]
[366362589,1750212651087,-225.079845,0.00016438,2]
[366362590,1750212651096,-225.079845,0.00016438,2]
[366362591,1750212651108,-225.079845,0.00016438,2]
[366362592,1750212651118,-225.079845,0.00016438,2]
[366362593,1750212651129,-225.079845,0.00016438,2]
[366362594,1750212651139,-490.0,0.00016438,2]
[366362595,1750212651148,-225.079845,0.00016438,2]
[366362596,1750212651158,-1024.14,0.00016438,2]
[366362597,1750212651167,-225.079845,0.00016438,2]
[366362598,1750212651177,-2381.26,0.00016438,2]
[366362599,1750212651187,-225.079845,0.00016438,2]
[366362600,1750212651196,-225.079845,0.00016438,2]
[366362601,1750212651207,-9336.49260113,0.00016438,2]
[366362602,1750212651918,-13214.95739887,0.00016438,2]
[366362603,1750212651928,-225.079845,0.00016438,2]
[366362604,1750212651937,-225.079845,0.00016438,2]
[366362605,1750212651947,-225.079845,0.00016438,2]
[366362606,1750212651957,-490.0,0.00016438,2]
[366362607,1750212651968,-641.31,0.00016438,2]
[366362608,1750212651978,-225.079845,0.00016438,2]
[366362609,1750212651988,-225.079854,0.00016438,2]
[366362610,1750212651998,-490.0,0.00016438,2]
[366362611,1750212652008,-490.0,0.00016438,2]
[366362612,1750212652018,-1386.62,0.00016438,2]
[366362613,1750212652028,-1859.05,0.00016438,2]
[366362614,1750212652037,-490.0,0.00016438,2]
[366362615,1750212652048,-1142.86,0.00016438,2]
[366362616,1750212652057,-490.0,0.00016438,2]
[366362617,1750212652067,-490.0,0.00016438,2]
[366362618,1750212652076,-490.0,0.00016438,2]
[366362619,1750212652086,-490.0,0.00016438,2]
[366362620,1750212652095,-948.3,0.00016438,2]
[366362621,1750212652106,-108.75448059,0.00016438,2]
[366362622,1750212652427,-381.24551941,0.00016438,2]
[366362623,1750212652451,-2027.38,0.00016438,2]
[366362624,1750212652462,-490.0,0.00016438,2]
[366362625,1750212652472,-7127.54,0.00016438,2]
[366362626,1750212652482,-490.0,0.00016438,2]
[366362627,1750212652492,-2887.88,0.00016438,2]
[366362628,1750212652501,-490.0,0.00016438,2]
[366362629,1750212652511,-490.0,0.00016438,2]
[366362630,1750212652520,-490.0,0.00016438,2]
[366362631,1750212652530,-6473.31,0.00016438,2]
[366362632,1750212652540,-492.2084548,0.00016438,2]
[366362633,1750212652550,-1285.76,0.00016438,2]
[366362634,1750212652560,-3561.9,0.00016438,2]
[366362635,1750212652570,-9797.811924,0.00016438,2]
[366362636,1750212652580,-9797.811924,0.00016438,2]
[366362637,1750212652590,-2150.37050156,0.00016438,2]
[366362638,1750212652619,-755.15851604,0.00016438,2]
[366362639,1750212652631,-3701.22088828,0.00016438,2]
[366362640,1750212652643,-528.84337705,0.00016438,2]
[366362641,1750212652659,-2662.21864107,0.00016438,2]
[366362642,1750212652668,-9797.811924,0.00016438,2]
[366362643,1750212652678,-631.15,0.00016438,2]
[366362644,1750212652688,-490.0,0.00016438,2]
[366362645,1750212652698,-844.94,0.00016438,2]
[366362646,1750212652707,-752.57,0.00016438,2]
[366362647,1750212652718,-151.0,0.00016438,2]
[366362648,1750212652727,-14596.63,0.00016438,2]
[366362649,1750212652738,-151.0,0.00016438,2]
[366362650,1750212652748,-151.0,0.00016438,2]
[366362651,1750212652758,-490.0,0.00016438,2]
[366362652,1750212652770,-151.0,0.00016438,2]
[366362653,1750212652780,-490.0,0.00016438,2]
[366362654,1750212652789,-490.0,0.00016438,2]
[366362655,1750212652799,-180.740929,0.00016438,2]
[366362656,1750212652808,-490.0,0.00016438,2]
[366362657,1750212652819,-683.21,0.00016438,2]
[366362658,1750212652830,-985.92,0.00016438,2]
[366362659,1750212652839,-490.0,0.00016438,2]
[366362660,1750212652849,-431.19745261,0.00016438,2]
[366362661,1750212652860,-494.03280083,0.00016438,2]
[366362662,1750212652869,-490.0,0.00016438,2]
[366362663,1750212652879,-490.0,0.00016438,2]
[366362664,1750212652888,-490.0,0.00016438,2]
[366362665,1750212652898,-643.14,0.00016438,2]
[366362666,1750212652907,-3034.52,0.00016438,2]
[366362667,1750212652917,-8536.12,0.00016438,2]
[366362668,1750212652926,-490.0,0.00016438,2]
[366362669,1750212652935,-151.0,0.00016438,2]
[366362670,1750212652945,-5163.25,0.00016438,2]
[366362671,1750212652955,-151.0,0.00016438,2]
[366362672,1750212652965,-490.0,0.00016438,2]
[366362673,1750212652974,-151.0,0.00016438,2]
[366362674,1750212652983,-151.0,0.00016438,2]
[366362675,1750212652994,-151.0,0.00016438,2]
[366362676,1750212653004,-151.0,0.00016438,2]
[366362677,1750212653013,-4822.03,0.00016438,2]
[366362678,1750212653023,-496.83802499,0.00016438,2]
[366362679,1750212653033,-151.0,0.00016438,2]
[366362680,1750212653042,-305.18532498,0.00016438,2]
[366362681,1750212653052,-490.0,0.00016438,2]
[366362682,1750212653062,-151.0,0.00016438,2]
[366362683,1750212653071,-151.0,0.00016438,2]
[366362684,1750212653081,-551.48,0.00016438,2]
[366362685,1750212653091,-490.0,0.00016438,2]
[366362686,1750212653101,-151.0,0.00016438,2]
[366362687,1750212653111,-169.360552,0.00016438,2]
[366362688,1750212653121,-490.0,0.00016438,2]
[366362689,1750212653131,-544.81,0.00016438,2]
[366362690,1750212653140,-490.0,0.00016438,2]
[366362691,1750212653150,-221.547237,0.00016438,2]
[366362692,1750212653160,-490.0,0.00016438,2]
[366362693,1750212653169,-221.547237,0.00016438,2]
[366362694,1750212653179,-221.547237,0.00016438,2]
[366362695,1750212653189,-514.88,0.00016438,2]
[366362696,1750212653199,-221.547237,0.00016438,2]
[366362697,1750212653208,-221.547237,0.00016438,2]
[366362698,1750212653218,-495.40563957,0.00016438,2]
[366362699,1750212653229,-1863.39,0.00016438,2]
[366362700,1750212653238,-221.547237,0.00016438,2]
[366362701,1750212653248,-490.0,0.00016438,2]
[366362702,1750212653258,-221.547237,0.00016438,2]
[366362703,1750212653268,-221.547237,0.00016438,2]
[366362704,1750212653277,-4060.03,0.00016438,2]
[366362705,1750212653286,-221.547237,0.00016438,2]
[366362706,1750212653296,-2511.96,0.00016438,2]
[366362707,1750212653306,-221.547237,0.00016438,2]
[366362708,1750212653315,-1426.73,0.00016438,2]
[366362709,1750212653325,-221.547237,0.00016438,2]
[366362710,1750212653334,-221.547237,0.00016438,2]
[366362711,1750212653343,-221.547237,0.00016438,2]
[366362712,1750212653353,-221.547237,0.00016438,2]
[366362713,1750212653363,-1013.61,0.00016438,2]
[366362714,1750212653373,-1856.34,0.00016438,2]
[366362715,1750212653384,-221.547237,0.00016438,2]
[366362716,1750212653393,-1874.25,0.00016438,2]
[366362717,1750212653403,-490.0,0.00016438,2]
[366362718,1750212653413,-221.547237,0.00016438,2]
[366362719,1750212653422,-493.67278831,0.00016438,2]
[366362720,1750212653431,-221.547237,0.00016438,2]
[366362721,1750212653441,-490.0,0.00016438,2]
[366362722,1750212653456,-221.547237,0.00016438,2]
[366362723,1750212653466,-221.547237,0.00016438,2]
[366362724,1750212653475,-620.62,0.00016438,2]
[366362725,1750212653485,-221.547243,0.00016438,2]
[366362726,1750212653495,-490.0,0.00016438,2]
[366362727,1750212653504,-634.59,0.00016438,2]
[366362728,1750212653514,-1846.83,0.00016438,2]
[366362729,1750212653523,-493.19295264,0.00016438,2]
[366362730,1750212653533,-490.0,0.00016438,2]
[366362731,1750212653543,-1490.13,0.00016438,2]
[366362732,1750212653552,-490.0,0.00016438,2]
[366362733,1750212653562,-407.26468967,0.00016438,2]
[366362734,1750212653571,-3498.32,0.00016438,2]
[366362735,1750212653581,-490.0,0.00016438,2]
[366362736,1750212653591,-1396.29,0.00016438,2]
[366362737,1750212653601,-495.92815326,0.00016438,2]
[366362738,1750212653611,-178.787694,0.00016438,2]
[366362739,1750212653621,-1214.18,0.00016438,2]
[366362740,1750212653631,-2632.95,0.00016438,2]
[366362741,1750212653640,-516.12,0.00016438,2]
[366362742,1750212653650,-1342.2,0.00016438,2]
[366362743,1750212653660,-2081.54,0.00016438,2]
[366362744,1750212653670,-609.51,0.00016438,2]
[366362745,1750212653679,-867.21,0.00016438,2]
[366362746,1750212653689,-151.0,0.00016438,2]
[366362747,1750212653699,-151.0,0.00016438,2]
[366362748,1750212653708,-2239.86,0.00016438,2]
[366362749,1750212653718,-151.0,0.00016438,2]
[366362750,1750212653728,-490.0,0.00016438,2]
[366362751,1750212653737,-3807.62,0.00016438,2]
[366362752,1750212653748,-151.0,0.00016438,2]
[366362753,1750212653758,-201.181432,0.00016438,2]
[366362754,1750212653772,-3140.22,0.00016438,2]
[366362755,1750212653782,-151.0,0.00016438,2]
[366362756,1750212653791,-646.91,0.00016438,2]
[366362757,1750212653802,-1310.92,0.00016438,2]
[366362758,1750212653811,-490.0,0.00016438,2]
[366362759,1750212653821,-490.0,0.00016438,2]
[366362760,1750212653831,-151.0,0.00016438,2]
[366362761,1750212653840,-490.0,0.00016438,2]
[366362762,1750212653850,-490.0,0.00016438,2]
[366362763,1750212653860,-2692.91,0.00016438,2]
[366362764,1750212653870,-287.002617,0.00016438,2]
[366362765,1750212653879,-490.0,0.00016438,2]
[366362766,1750212653889,-7274.98,0.00016438,2]
[366362767,1750212653899,-490.0,0.00016438,2]
[366362768,1750212653908,-2298.92,0.00016438,2]
[366362769,1750212653917,-1880.19,0.00016438,2]
[366362770,1750212653926,-914.62,0.00016438,2]
[366362771,1750212653935,-1862.78,0.00016438,2]
[366362772,1750212653945,-490.0,0.00016438,2]
[366362773,1750212653955,-490.0,0.00016438,2]
[366362774,1750212653965,-10206.09,0.00016438,2]
[366362775,1750212653974,-490.0,0.00016438,2]
[366362776,1750212653984,-4921.16,0.00016438,2]
[366362777,1750212653993,-2026.36,0.00016438,2]
[366362778,1750212654003,-2017.06,0.00016438,2]
[366362779,1750212654013,-3732.14,0.00016438,2]
[366362780,1750212654022,-945.79,0.00016438,2]
[366362781,1750212654032,-504.87,0.00016438,2]
[366362782,1750212654041,-490.0,0.00016438,2]
[366362783,1750212654051,-1492.01,0.00016438,2]
[366362784,1750212654060,-3761.97,0.00016438,2]
[366362785,1750212654070,-617.7,0.00016438,2]
[366362786,1750212654080,-490.0,0.00016438,2]
[366362787,1750212654089,-2540.83,0.00016438,2]
[366362788,1750212654099,-8995.39,0.00016438,2]
[366362789,1750212654109,-490.0,0.00016438,2]
[366362790,1750212654118,-750.27,0.00016438,2]
[366362791,1750212654129,-1876.19,0.00016438,2]
[366362792,1750212654139,-2430.84,0.00016438,2]
[366362793,1750212654149,-490.0,0.00016438,2]
[366362794,1750212654159,-490.0,0.00016438,2]
[366362795,1750212654169,-2809.01,0.00016438,2]
[366362796,1750212654179,-2697.23,0.00016438,2]
[366362797,1750212654188,-490.0,0.00016438,2]
[366362798,1750212654198,-1344.98,0.00016438,2]
[366362799,1750212654208,-1226.0,0.00016438,2]
[366362800,1750212654217,-2234.85,0.00016438,2]
[366362801,1750212654227,-490.0,0.00016438,2]
[366362802,1750212654236,-1364.34,0.00016438,2]
[366362803,1750212654246,-490.0,0.00016438,2]
[366362804,1750212654255,-2960.16,0.00016438,2]
[366362805,1750212654265,-490.0,0.00016438,2]
[366362806,1750212654275,-994.74,0.00016438,2]
[366362807,1750212654286,-896.76,0.00016438,2]
[366362808,1750212654295,-209.88309039,0.00016438,2]
[366362809,1750212654900,-290.11690961,0.00016438,2]
[366362810,1750212654910,-500.0,0.00016438,2]
[366362811,1750212654920,-500.0,0.00016438,2]
[366362812,1750212654930,-500.0,0.00016438,2]
[366362813,1750212654941,-985.85,0.00016438,2]
[366362814,1750212654951,-315.83143885,0.00016438,2]
[366362817,1750212887306,3000.0,0.00024658,120]
[366362818,1750212897334,3000.0,0.00024658,120]
[366362819,1750212905828,3000.0,0.00024658,120]
[366362820,1750212913612,3000.0,0.00024658,120]
[366362821,1750212932586,2686.45,0.00024658,120]
[366362822,1750213053097,150.0,0.0001312,2]
[366362823,1750213091887,203.0,0.00012746,2]
[366362824,1750213294331,10000.0,0.0001312,2]
[366362825,1750213306282,3445.1,0.0001312,2]
[366362826,1750213361571,203.0,0.00012746,2]
[366362827,1750213458477,256.58,0.0001312,2]
[366362856,1750213811881,203.0,0.0001227,2]
[366362860,1750213832291,-222.46,0.00013699,2]
[366362861,1750213832302,-112.04747262,0.00013861,3]
[366362862,1750213832314,-90.95252738,0.00013861,3]
[366362863,1750213832324,-5007.59468674,0.00014163,2]
[366362864,1750213832334,-610.42831804,0.00014975,2]
[366362865,1750213832344,-213.65069274,0.00014987,2]
[366362866,1750213832359,-184.7,0.00015073,2]
[366362867,1750213832369,-1000.0,0.00015076,2]
[366362868,1750213832379,-328.51,0.00015087,2]
[366362870,1750213832391,-838.30928406,0.00015097,2]
[366362872,1750213832424,-135.57071594,0.00015097,2]
[366362873,1750213832433,-457.83,0.00015108,2]
[366362874,1750213832443,-250.0,0.00015121,2]
[366362876,1750213832453,-1200.0,0.00015177,2]
[366362880,1750213832463,-531.11056405,0.00015178,2]
[366363265,1750213840235,-1655.26698587,0.00015178,2]
[366363266,1750213840524,-21713.62245008,0.00015178,2]
[366363267,1750213840534,-721.31,0.00015196,2]
[366363268,1750213840544,-2219.03,0.00015305,2]
[366363269,1750213840554,-200.0,0.00015417,2]
[366363270,1750213840563,-183.91,0.00015417,2]
[366363271,1750213840573,-200.0,0.00015436,7]
[366363272,1750213840582,-203.0,0.00015452,5]
[366363273,1750213840591,-163.48,0.00015665,2]
[366363274,1750213840601,-151.0,0.00015716,2]
[366363275,1750213840610,-207.4,0.00015716,2]
[366363277,1750213840620,-301.05,0.00015717,2]
[366363278,1750213840630,-150.46,0.0001574,2]
[366363279,1750213840639,-150.0,0.0001574,2]
[366363280,1750213840648,-393.29,0.0001574,2]
[366363281,1750213840657,-2153.55743259,0.000159,2]
[366363282,1750213840667,-150.0,0.00015953,2]
[366363283,1750213840676,-2153.55743239,0.00016038,2]
[366363284,1750213840686,-2153.55743239,0.00016176,2]
[366363285,1750213840696,-490.17,0.0001628,2]
[366363286,1750213840705,-304.71,0.0001628,2]
[366363287,1750213840715,-151.91,0.0001628,2]
[366363288,1750213840724,-608.63684678,0.0001628,2]
[366363289,1750213840733,-150.0,0.00016301,2]
[366363290,1750213840743,-150.0,0.00016311,2]
[366363291,1750213840753,-2153.55743239,0.00016314,2]
[366363292,1750213840763,-150.0,0.00016326,2]
[366363293,1750213840772,-657.33464382,0.00016338,2]
[366363294,1750213840781,-323.50478688,0.00016338,2]
[366363295,1750213840791,-151.51220733,0.00016338,2]
[366363296,1750213840801,-666.4578,0.00016338,2]
[366363297,1750213840811,-426.762,0.00016338,2]
[366363298,1750213840820,-150.0,0.00016351,2]
[366363299,1750213840830,-150.0,0.00016366,2]
[366363300,1750213840839,-150.0,0.00016384,2]
[366363301,1750213840849,-150.0,0.00016391,2]
[366363302,1750213840859,-150.0,0.00016406,2]
[366363303,1750213840869,-150.0,0.00016409,2]
[366363304,1750213840879,-799.41527248,0.00016421,2]
[366363305,1750213840889,-156.26164084,0.00016421,2]
[366363306,1750213840899,-833.92080167,0.00016427,2]
[366363307,1750213840908,-194.70694787,0.00016428,2]
[366363308,1750213840917,-1866.9093811,0.00016429,2]
[366363309,1750213840928,-8006.92818898,0.00016429,2]
[366363310,1750213840954,-881.03171814,0.00016429,2]
[366363311,1750213840965,-391.75537033,0.00016429,2]
[366363316,1750213843215,-1587.98837803,0.00016429,2]
[366363317,1750213843350,-1365.27997812,0.00016429,2]
[366363318,1750213843363,-9826.2858617,0.00016429,2]
[366363319,1750213843373,-1453.1974835,0.00016429,2]
[366363320,1750213843383,-8934.57167901,0.00016429,2]
[366363321,1750213843444,-14911.14948408,0.00016429,2]
[366363329,1750213846207,-76413.65843992,0.00016429,2]
[366363330,1750214119137,5828.0,0.00024658,120]
[366363331,1750214180005,194.0,0.00024649,120]
[366363334,1750214707056,213.7166126,0.00024649,120]
[366363335,1750214708111,2006.0,0.00024658,120]
[366363360,1750215032448,-221.77,0.00013699,2]
[366363361,1750215032458,-320.96167396,0.00013943,2]
[366363362,1750215032468,-203.0,0.00014043,2]
[366363363,1750215032478,-232.23784847,0.00015002,2]
[366363364,1750215032488,-307.21565757,0.00015003,2]
[366363365,1750215032553,-850.0,0.00015003,2]
[366363517,1750215040504,-42.78434243,0.00015003,2]
[366363518,1750215040513,-276.08045759,0.00015003,2]
[366363519,1750215040689,-498.77420494,0.00015003,2]
[366363522,1750215043394,-225.14533747,0.00015003,2]
[366363523,1750215043404,-95.81633649,0.00015004,2]
[366363524,1750215043552,-60.37366351,0.00015004,2]
[366363525,1750215043562,-7539.32,0.00015004,2]
[366363526,1750215043571,-2472.29,0.00015052,2]
[366363527,1750215043581,-231.29911975,0.00015102,2]
[366363528,1750215043590,-262.87,0.00015121,2]
[366363529,1750215043599,-868.06,0.00015146,2]
[366363530,1750215043609,-250.0,0.00015146,2]
[366363531,1750215043618,-456.96,0.00015162,2]
[366363532,1750215043628,-666.0,0.00015224,2]
[366363533,1750215043638,-2742.31,0.00015273,2]
[366363534,1750215043647,-444.17,0.00015321,2]
[366363535,1750215043657,-2011.19,0.00015438,2]
[366363537,1750215043666,-163.48,0.00015578,2]
[366363539,1750215043675,-151.0,0.00015716,2]
[366363540,1750215043684,-207.4,0.00015716,2]
[366363541,1750215043693,-203.0,0.00015745,4]
[366363542,1750215043703,-264.49,0.00015778,2]
[366363543,1750215043712,-1164.87,0.00015826,2]
[366363544,1750215043721,-199.0,0.00015853,2]
[366363545,1750215043730,-1932.91034677,0.000159,2]
[366363546,1750215043740,-326.33,0.00015978,2]
[366363547,1750215043750,-159.83,0.00016,2]
[366363548,1750215043758,-1932.91034654,0.00016038,2]
[366363549,1750215043767,-1932.91034654,0.00016176,2]
[366363550,1750215043776,-502.42,0.00016176,2]
[366363551,1750215043785,-491.64,0.00016176,2]
[366363552,1750215043794,-303.69,0.00016176,2]
[366363553,1750215043803,-491.52,0.00016176,2]
[366363554,1750215043812,-302.37,0.00016176,2]
[366363555,1750215043822,-501.66,0.00016176,2]
[366363556,1750215043831,-1058.13015946,0.000162,2]
[366363557,1750215043845,-199.0,0.00016233,2]
[366363558,1750215043854,-156.26164084,0.00016243,2]
[366363559,1750215043864,-156.26164084,0.00016265,2]
[366363560,1750215043873,-156.26164084,0.00016286,2]
[366363561,1750215043885,-80000.0,0.000163,2]
[366363562,1750215043894,-50000.0,0.000163,2]
[366363563,1750215043904,-157.17364023,0.000163,2]
[366363564,1750215043914,-432.9253,0.000163,2]
[366363565,1750215043924,-155.6267211,0.000163,2]
[366363566,1750215043933,-338.72584221,0.000163,2]
[366363567,1750215043942,-500.0,0.00016307,2]
[366363568,1750215043952,-156.26164084,0.00016308,2]
[366363569,1750215043961,-1932.91034654,0.00016314,2]
[366363570,1750215043971,-199.0,0.00016326,2]
[366363571,1750215043980,-707.72107263,0.00016329,2]
[366363572,1750215043990,-501.71,0.00016329,2]
[366363573,1750215043999,-301.54,0.00016329,2]
[366363574,1750215044009,-492.57,0.00016329,2]
[366363575,1750215044018,-151.86,0.00016329,2]
[366363576,1750215044027,-498.34,0.00016329,2]
[366363577,1750215044037,-300.43,0.00016329,2]
[366363578,1750215044047,-494.18,0.00016329,2]
[366363579,1750215044056,-506.42,0.00016329,2]
[366363580,1750215044066,-305.61,0.00016329,2]